[Event "Titled Tuesday Blitz March 21 Late 2023"]
[White "Toktomushev, Teimur"]
[Black "Filgueira, Hernan"]
[WhiteFideId "14176726"]
[BlackFideId "101770"]
[WhiteElo "2116"]
[BlackElo "2363"]
[Result "1/2-1/2"]
[Round "09"]
[TimeControl "180+2"]
[Date "2023.03.21"]
[WhiteClock "0:00:52"]
[BlackClock "0:01:57"]

1. d4 {[%clk 0:03:00]}  d5 {[%clk 0:02:58]} 2. c4 {[%clk 0:03:00]}  e6 {[%clk 0:02:58]} 3. Nc3 {[%clk 0:03:00]}  c6 {[%clk 0:02:59]} 4. e3 {[%clk 0:02:59]}  Nf6 {[%clk 0:02:58]} 5. Nf3 {[%clk 0:02:59]}  a6 {[%clk 0:02:58]} 6. c5 {[%clk 0:02:43]}  Nbd7 {[%clk 0:02:56]} 7. Be2 {[%clk 0:02:28]}  e5 {[%clk 0:02:53]} 8. dxe5 {[%clk 0:02:22]}  Ne4 {[%clk 0:02:42]} 9. e6 {[%clk 0:01:27]}  Ndxc5 {[%clk 0:02:31]} 10. exf7+ {[%clk 0:01:27]}  Kxf7 {[%clk 0:02:30]} 11. Nxe4 {[%clk 0:01:27]}  Nxe4 {[%clk 0:02:30]} 12. O-O {[%clk 0:01:27]}  Bd6 {[%clk 0:02:28]} 13. Nd2 {[%clk 0:01:22]}  Bf5 {[%clk 0:02:12]} 14. Nxe4 {[%clk 0:01:20]}  Bxe4 {[%clk 0:02:12]} 15. f3 {[%clk 0:01:13]}  Bg6 {[%clk 0:02:10]} 16. e4 {[%clk 0:01:08]}  Qh4 {[%clk 0:02:00]} 17. g3 {[%clk 0:00:50]}  Bxg3 {[%clk 0:01:58]} 18. hxg3 {[%clk 0:00:51]}  Qxg3+ {[%clk 0:01:58]} 19. Kh1 {[%clk 0:00:51]}  Qh3+ {[%clk 0:01:56]} 20. Kg1 {[%clk 0:00:51]}  Qg3+ {[%clk 0:01:57]} 21. Kh1 {[%clk 0:00:52]}  Qh3+ {[%clk 0:01:57]} 22. Kg1 {[%clk 0:00:52]}  Qg3+ {[%clk 0:01:57]} 1/2-1/2


[Site "https://www.chess.com"]

[Event "Titled Tuesday Blitz March 21 Late 2023"]
[White "Bolourchifard, Farzad"]
[Black "Sztokbant, Bernardo Vainzoff"]
[WhiteFideId "12510084"]
[BlackFideId "2115956"]
[WhiteElo "2317"]
[BlackElo "2222"]
[Result "1-0"]
[Round "09"]
[TimeControl "180+2"]
[Date "2023.03.21"]
[WhiteClock "0:00:48"]
[BlackClock "0:00:01"]

1. e4 {[%clk 0:03:00]}  c5 {[%clk 0:02:57]} 2. Nc3 {[%clk 0:03:01]}  Nc6 {[%clk 0:02:56]} 3. g3 {[%clk 0:03:01]}  g6 {[%clk 0:02:56]} 4. Bg2 {[%clk 0:03:02]}  Bg7 {[%clk 0:02:56]} 5. d3 {[%clk 0:03:02]}  e6 {[%clk 0:02:56]} 6. Be3 {[%clk 0:03:03]}  b6 {[%clk 0:02:55]} 7. Qd2 {[%clk 0:03:03]}  h6 {[%clk 0:02:51]} 8. Nge2 {[%clk 0:03:04]}  Nge7 {[%clk 0:02:48]} 9. O-O {[%clk 0:03:03]}  e5 {[%clk 0:02:44]} 10. f4 {[%clk 0:02:52]}  d6 {[%clk 0:02:44]} 11. f5 {[%clk 0:02:51]}  Ng8 {[%clk 0:01:50]} 12. fxg6 {[%clk 0:02:45]}  fxg6 {[%clk 0:01:51]} 13. Nd5 {[%clk 0:02:45]}  Be6 {[%clk 0:01:46]} 14. c3 {[%clk 0:02:45]}  Qd7 {[%clk 0:01:42]} 15. d4 {[%clk 0:02:43]}  exd4 {[%clk 0:01:40]} 16. cxd4 {[%clk 0:02:44]}  O-O-O {[%clk 0:01:39]} 17. Ndf4 {[%clk 0:02:42]}  Bg4 {[%clk 0:01:11]} 18. h3 {[%clk 0:01:54]}  Bxe2 {[%clk 0:01:10]} 19. Nxe2 {[%clk 0:01:55]}  Nf6 {[%clk 0:01:02]} 20. a4 {[%clk 0:01:47]}  Rhe8 {[%clk 0:01:02]} 21. Nc3 {[%clk 0:01:21]}  Na5 {[%clk 0:00:36]} 22. Qd3 {[%clk 0:01:14]}  c4 {[%clk 0:00:33]} 23. Qc2 {[%clk 0:01:13]}  Nb3 {[%clk 0:00:29]} 24. Rad1 {[%clk 0:01:12]}  Nh5 {[%clk 0:00:29]} 25. Kh2 {[%clk 0:01:07]}  Kb8 {[%clk 0:00:25]} 26. Qe2 {[%clk 0:01:00]}  Rc8 {[%clk 0:00:16]} 27. g4 {[%clk 0:00:49]}  Nf6 {[%clk 0:00:16]} 28. e5 {[%clk 0:00:49]}  dxe5 {[%clk 0:00:11]} 29. dxe5 {[%clk 0:00:48]}  Qc7 {[%clk 0:00:11]} 30. Qf3 {[%clk 0:00:48]}  Qxe5+ {[%clk 0:00:02]} 31. Bf4 {[%clk 0:00:48]}  Qxf4+ {[%clk 0:00:01]} 32. Qxf4+ {[%clk 0:00:48]} 1-0


[Site "https://www.chess.com"]

[Event "Titled Tuesday Blitz March 21 Late 2023"]
[White "Kashefi, Amir Hosein"]
[Black "Aldokhin, Ivan"]
[WhiteFideId "12557935"]
[BlackFideId "24115720"]
[WhiteElo "2078"]
[BlackElo "2322"]
[Result "0-1"]
[Round "09"]
[TimeControl "180+2"]
[Date "2023.03.21"]
[WhiteClock "0:00:01"]
[BlackClock "0:00:14"]

1. d4 {[%clk 0:02:58]}  Nf6 {[%clk 0:02:39]} 2. c4 {[%clk 0:02:50]}  g6 {[%clk 0:02:40]} 3. Nf3 {[%clk 0:02:49]}  Bg7 {[%clk 0:02:40]} 4. g3 {[%clk 0:02:49]}  d6 {[%clk 0:02:41]} 5. Bg2 {[%clk 0:02:50]}  O-O {[%clk 0:02:41]} 6. O-O {[%clk 0:02:50]}  Bf5 {[%clk 0:02:40]} 7. Nc3 {[%clk 0:02:51]}  Ne4 {[%clk 0:02:37]} 8. Nd2 {[%clk 0:02:45]}  Nxc3 {[%clk 0:02:35]} 9. bxc3 {[%clk 0:02:46]}  c6 {[%clk 0:02:35]} 10. e4 {[%clk 0:02:45]}  Bd7 {[%clk 0:02:34]} 11. Rb1 {[%clk 0:02:45]}  Qc7 {[%clk 0:02:18]} 12. f4 {[%clk 0:02:43]}  c5 {[%clk 0:02:16]} 13. e5 {[%clk 0:02:32]}  Nc6 {[%clk 0:02:07]} 14. Bb2 {[%clk 0:02:29]}  Rad8 {[%clk 0:01:47]} 15. Qe2 {[%clk 0:02:27]}  dxe5 {[%clk 0:01:37]} 16. fxe5 {[%clk 0:02:18]}  cxd4 {[%clk 0:01:36]} 17. cxd4 {[%clk 0:02:17]}  Bf5 {[%clk 0:01:36]} 18. Nf3 {[%clk 0:01:32]}  Bxb1 {[%clk 0:01:23]} 19. Rxb1 {[%clk 0:01:33]}  Qb6 {[%clk 0:01:13]} 20. c5 {[%clk 0:01:29]}  Qb4 {[%clk 0:01:12]} 21. Qe4 {[%clk 0:00:56]}  e6 {[%clk 0:01:04]} 22. Bc1 {[%clk 0:00:40]}  Qa4 {[%clk 0:01:04]} 23. Be3 {[%clk 0:00:16]}  Nb4 {[%clk 0:00:56]} 24. d5 {[%clk 0:00:10]}  a5 {[%clk 0:00:20]} 25. d6 {[%clk 0:00:10]}  Qxa2 {[%clk 0:00:21]} 26. h4 {[%clk 0:00:04]}  Nd5 {[%clk 0:00:20]} 27. Bg5 {[%clk 0:00:03]}  Nc3 {[%clk 0:00:19]} 28. Qd3 {[%clk 0:00:01]}  Qxb1+ {[%clk 0:00:19]} 29. Qxb1 {[%clk 0:00:01]}  Nxb1 {[%clk 0:00:20]} 30. Nd4 {[%clk 0:00:01]}  Rc8 {[%clk 0:00:16]} 31. Bxb7 {[%clk 0:00:02]}  Rxc5 {[%clk 0:00:16]} 32. d7 {[%clk 0:00:02]}  Bxe5 {[%clk 0:00:16]} 33. Nxe6 {[%clk 0:00:02]}  fxe6 {[%clk 0:00:15]} 34. Be7 {[%clk 0:00:01]}  Bd4+ {[%clk 0:00:14]} 0-1


[Site "https://www.chess.com"]

[Event "Titled Tuesday Blitz March 21 Late 2023"]
[White "Jaferian, Koosha"]
[Black "Miszler, Levente"]
[WhiteFideId "12507440"]
[BlackFideId "763276"]
[WhiteElo "2107"]
[BlackElo "2176"]
[Result "1-0"]
[Round "09"]
[TimeControl "180+2"]
[Date "2023.03.21"]
[WhiteClock "0:00:59"]
[BlackClock "0:01:18"]

1. d4 {[%clk 0:03:00]}  Nf6 {[%clk 0:02:58]} 2. c4 {[%clk 0:03:01]}  e6 {[%clk 0:02:58]} 3. Nf3 {[%clk 0:03:01]}  b6 {[%clk 0:02:58]} 4. g3 {[%clk 0:03:01]}  Bb7 {[%clk 0:02:58]} 5. Bg2 {[%clk 0:03:01]}  Be7 {[%clk 0:02:59]} 6. O-O {[%clk 0:03:00]}  O-O {[%clk 0:03:00]} 7. Nc3 {[%clk 0:03:00]}  Ne4 {[%clk 0:02:59]} 8. Nxe4 {[%clk 0:02:59]}  Bxe4 {[%clk 0:03:00]} 9. Ne1 {[%clk 0:02:59]}  Bxg2 {[%clk 0:03:00]} 10. Nxg2 {[%clk 0:03:00]}  d6 {[%clk 0:02:58]} 11. e4 {[%clk 0:02:59]}  Nd7 {[%clk 0:02:58]} 12. Be3 {[%clk 0:02:55]}  e5 {[%clk 0:02:58]} 13. d5 {[%clk 0:02:53]}  f5 {[%clk 0:02:58]} 14. exf5 {[%clk 0:02:53]}  Rxf5 {[%clk 0:02:57]} 15. f4 {[%clk 0:02:51]}  Qf8 {[%clk 0:02:45]} 16. Qd3 {[%clk 0:02:22]}  g6 {[%clk 0:02:14]} 17. Rae1 {[%clk 0:02:11]}  Re8 {[%clk 0:02:12]} 18. Qa3 {[%clk 0:01:56]}  a5 {[%clk 0:02:11]} 19. Qa4 {[%clk 0:01:52]}  Nc5 {[%clk 0:02:02]} 20. Bxc5 {[%clk 0:01:52]}  bxc5 {[%clk 0:02:03]} 21. fxe5 {[%clk 0:01:49]}  dxe5 {[%clk 0:01:52]} 22. Rxf5 {[%clk 0:01:49]}  gxf5 {[%clk 0:01:52]} 23. Rxe5 {[%clk 0:01:49]}  Rb8 {[%clk 0:01:50]} 24. Qc2 {[%clk 0:01:30]}  Qg7 {[%clk 0:01:46]} 25. Qxf5 {[%clk 0:01:26]}  Bd6 {[%clk 0:01:37]} 26. Re2 {[%clk 0:01:04]}  Rxb2 {[%clk 0:01:32]} 27. Qe6+ {[%clk 0:01:01]}  Kh8 {[%clk 0:01:22]} 28. Qe8+ {[%clk 0:01:00]}  Bf8 {[%clk 0:01:18]} 29. Rxb2 {[%clk 0:00:59]} 1-0


[Site "https://www.chess.com"]

[Event "Titled Tuesday Blitz March 21 Late 2023"]
[White "JackRodgers"]
[Black "benny_aizenberg"]
[WhiteElo "2491"]
[BlackElo "2619"]
[Result "1-0"]
[Round "09"]
[TimeControl "180+2"]
[Date "2023.03.21"]
[WhiteClock "0:00:52"]
[BlackClock "0:00:04"]

1. d4 {[%clk 0:03:00]}  d5 {[%clk 0:02:57]} 2. c4 {[%clk 0:02:58]}  e5 {[%clk 0:02:56]} 3. Nc3 {[%clk 0:02:46]}  dxc4 {[%clk 0:02:42]} 4. d5 {[%clk 0:02:44]}  Nf6 {[%clk 0:02:39]} 5. e4 {[%clk 0:02:38]}  b5 {[%clk 0:02:32]} 6. Bg5 {[%clk 0:02:27]}  Bb4 {[%clk 0:02:24]} 7. Nf3 {[%clk 0:02:24]}  Nbd7 {[%clk 0:02:22]} 8. Rc1 {[%clk 0:02:18]}  h6 {[%clk 0:02:15]} 9. Bh4 {[%clk 0:02:18]}  O-O {[%clk 0:02:10]} 10. Qc2 {[%clk 0:02:13]}  a6 {[%clk 0:02:06]} 11. Be2 {[%clk 0:02:11]}  Bb7 {[%clk 0:02:05]} 12. O-O {[%clk 0:02:11]}  c6 {[%clk 0:02:06]} 13. dxc6 {[%clk 0:02:03]}  Bxc6 {[%clk 0:02:04]} 14. Rfd1 {[%clk 0:02:04]}  Bxc3 {[%clk 0:01:58]} 15. Bxf6 {[%clk 0:01:48]}  Qxf6 {[%clk 0:01:56]} 16. Qxc3 {[%clk 0:01:43]}  Rfe8 {[%clk 0:01:50]} 17. Nd2 {[%clk 0:01:40]}  Nc5 {[%clk 0:01:46]} 18. Qe3 {[%clk 0:01:39]}  Ne6 {[%clk 0:01:43]} 19. b3 {[%clk 0:01:36]}  Nf4 {[%clk 0:01:13]} 20. bxc4 {[%clk 0:01:26]}  b4 {[%clk 0:01:13]} 21. c5 {[%clk 0:01:18]}  a5 {[%clk 0:01:01]} 22. Nc4 {[%clk 0:01:18]}  Qg6 {[%clk 0:00:59]} 23. Bf3 {[%clk 0:01:10]}  Red8 {[%clk 0:00:52]} 24. Nxe5 {[%clk 0:01:05]}  Qf6 {[%clk 0:00:20]} 25. Nxc6 {[%clk 0:01:01]}  Rxd1+ {[%clk 0:00:20]} 26. Rxd1 {[%clk 0:01:02]}  Ng6 {[%clk 0:00:19]} 27. e5 {[%clk 0:01:00]}  Qh4 {[%clk 0:00:17]} 28. Ne7+ {[%clk 0:00:57]}  Qxe7 {[%clk 0:00:17]} 29. Bxa8 {[%clk 0:00:57]}  Nxe5 {[%clk 0:00:16]} 30. Re1 {[%clk 0:00:54]}  f6 {[%clk 0:00:15]} 31. f4 {[%clk 0:00:54]}  Qa7 {[%clk 0:00:14]} 32. Bd5+ {[%clk 0:00:53]}  Nf7 {[%clk 0:00:14]} 33. Qe8+ {[%clk 0:00:53]}  Kh7 {[%clk 0:00:14]} 34. Qxf7 {[%clk 0:00:52]}  Qxc5+ {[%clk 0:00:14]} 35. Kh1 {[%clk 0:00:53]}  Qc3 {[%clk 0:00:04]} 36. Be4+ {[%clk 0:00:51]}  f5 {[%clk 0:00:04]} 37. Bxf5+ {[%clk 0:00:51]}  Kh8 {[%clk 0:00:04]} 38. Qe8# {[%clk 0:00:52]} 1-0


[Site "https://www.chess.com"]

[Event "Titled Tuesday Blitz March 21 Late 2023"]
[White "Medina Paz, Miguel"]
[Black "Fernandez, Maria Florencia"]
[WhiteFideId "7300379"]
[BlackFideId "116459"]
[WhiteElo "2428"]
[BlackElo "2155"]
[Result "1-0"]
[Round "09"]
[TimeControl "180+2"]
[Date "2023.03.21"]
[WhiteClock "0:00:39"]
[BlackClock "0:00:01"]

1. d4 {[%clk 0:02:58]}  Nf6 {[%clk 0:02:59]} 2. c4 {[%clk 0:02:57]}  g6 {[%clk 0:02:57]} 3. Nc3 {[%clk 0:02:57]}  Bg7 {[%clk 0:02:57]} 4. e4 {[%clk 0:02:57]}  d6 {[%clk 0:02:57]} 5. f4 {[%clk 0:02:56]}  O-O {[%clk 0:02:57]} 6. Nf3 {[%clk 0:02:56]}  e5 {[%clk 0:02:51]} 7. fxe5 {[%clk 0:02:56]}  dxe5 {[%clk 0:02:52]} 8. d5 {[%clk 0:02:56]}  c6 {[%clk 0:02:51]} 9. Be2 {[%clk 0:02:53]}  cxd5 {[%clk 0:02:51]} 10. cxd5 {[%clk 0:02:53]}  Nbd7 {[%clk 0:02:50]} 11. O-O {[%clk 0:02:49]}  Nh5 {[%clk 0:02:45]} 12. g3 {[%clk 0:02:45]}  Nhf6 {[%clk 0:02:38]} 13. Kg2 {[%clk 0:02:38]}  h6 {[%clk 0:02:21]} 14. Be3 {[%clk 0:02:35]}  Ng4 {[%clk 0:02:18]} 15. Bg1 {[%clk 0:02:35]}  f5 {[%clk 0:02:09]} 16. Nh4 {[%clk 0:02:28]}  Qg5 {[%clk 0:01:49]} 17. Bxg4 {[%clk 0:02:23]}  fxg4 {[%clk 0:01:46]} 18. Qe2 {[%clk 0:02:12]}  Nf6 {[%clk 0:01:20]} 19. Bc5 {[%clk 0:02:09]}  Rf7 {[%clk 0:01:17]} 20. Rf2 {[%clk 0:02:03]}  Qh5 {[%clk 0:01:11]} 21. Raf1 {[%clk 0:02:01]}  Bd7 {[%clk 0:00:58]} 22. a4 {[%clk 0:01:27]}  b6 {[%clk 0:00:58]} 23. Be3 {[%clk 0:01:26]}  Raf8 {[%clk 0:00:57]} 24. Qa6 {[%clk 0:01:13]}  Bc8 {[%clk 0:00:53]} 25. Qc4 {[%clk 0:01:13]}  Kh7 {[%clk 0:00:45]} 26. d6 {[%clk 0:01:12]}  g5 {[%clk 0:00:19]} 27. Nf5 {[%clk 0:01:11]}  Bxf5 {[%clk 0:00:19]} 28. Rxf5 {[%clk 0:01:10]}  Qg6 {[%clk 0:00:19]} 29. Qe6 {[%clk 0:00:58]}  Nh5 {[%clk 0:00:03]} 30. Qxg6+ {[%clk 0:00:54]}  Kxg6 {[%clk 0:00:04]} 31. Nd5 {[%clk 0:00:48]}  Rxf5 {[%clk 0:00:04]} 32. Ne7+ {[%clk 0:00:46]}  Kh7 {[%clk 0:00:03]} 33. Nxf5 {[%clk 0:00:46]}  Rd8 {[%clk 0:00:03]} 34. Rc1 {[%clk 0:00:46]}  Kg6 {[%clk 0:00:02]} 35. Rc7 {[%clk 0:00:46]}  Nf6 {[%clk 0:00:02]} 36. Rxg7+ {[%clk 0:00:45]}  Kh5 {[%clk 0:00:01]} 37. Re7 {[%clk 0:00:43]}  Nxe4 {[%clk 0:00:01]} 38. Re6 {[%clk 0:00:39]} 1-0


[Site "https://www.chess.com"]

[Event "Titled Tuesday Blitz March 21 Late 2023"]
[White "Mortazavi, Ali"]
[Black "Hindermann, Felix"]
[WhiteFideId "401323"]
[BlackFideId "1305212"]
[WhiteElo "2339"]
[BlackElo "2206"]
[Result "0-1"]
[Round "09"]
[TimeControl "180+2"]
[Date "2023.03.21"]
[WhiteClock "0:00:08"]
[BlackClock "0:00:04"]

1. e4 {[%clk 0:02:56]}  e6 {[%clk 0:02:58]} 2. d4 {[%clk 0:02:55]}  d5 {[%clk 0:02:59]} 3. e5 {[%clk 0:02:56]}  c5 {[%clk 0:02:59]} 4. c3 {[%clk 0:02:57]}  Qb6 {[%clk 0:02:59]} 5. Nf3 {[%clk 0:02:58]}  Nc6 {[%clk 0:02:59]} 6. Bd3 {[%clk 0:02:58]}  Bd7 {[%clk 0:02:59]} 7. O-O {[%clk 0:02:58]}  Rc8 {[%clk 0:02:59]} 8. h4 {[%clk 0:02:57]}  cxd4 {[%clk 0:02:59]} 9. Re1 {[%clk 0:02:52]}  h5 {[%clk 0:02:54]} 10. Nbd2 {[%clk 0:02:44]}  dxc3 {[%clk 0:02:52]} 11. bxc3 {[%clk 0:02:44]}  Nh6 {[%clk 0:02:53]} 12. Rb1 {[%clk 0:02:39]}  Qc7 {[%clk 0:02:53]} 13. c4 {[%clk 0:02:38]}  Ng4 {[%clk 0:02:48]} 14. cxd5 {[%clk 0:02:33]}  exd5 {[%clk 0:02:48]} 15. Nb3 {[%clk 0:02:26]}  Bb4 {[%clk 0:02:45]} 16. Bd2 {[%clk 0:02:21]}  Be6 {[%clk 0:02:30]} 17. Bxb4 {[%clk 0:02:00]}  Nxb4 {[%clk 0:02:30]} 18. Bb5+ {[%clk 0:01:51]}  Nc6 {[%clk 0:02:29]} 19. Nbd4 {[%clk 0:01:48]}  O-O {[%clk 0:02:17]} 20. Bxc6 {[%clk 0:01:21]}  bxc6 {[%clk 0:02:17]} 21. Qd3 {[%clk 0:01:01]}  g6 {[%clk 0:00:45]} 22. Nxe6 {[%clk 0:00:46]}  fxe6 {[%clk 0:00:46]} 23. Qxg6+ {[%clk 0:00:46]}  Qg7 {[%clk 0:00:46]} 24. Qxe6+ {[%clk 0:00:44]}  Kh8 {[%clk 0:00:44]} 25. Ng5 {[%clk 0:00:24]}  Rce8 {[%clk 0:00:45]} 26. Qxc6 {[%clk 0:00:22]}  Nxf2 {[%clk 0:00:40]} 27. Rb7 {[%clk 0:00:17]}  Re7 {[%clk 0:00:40]} 28. Rxe7 {[%clk 0:00:14]}  Qxe7 {[%clk 0:00:41]} 29. Qh6+ {[%clk 0:00:14]}  Kg8 {[%clk 0:00:42]} 30. Qg6+ {[%clk 0:00:13]}  Kh8 {[%clk 0:00:42]} 31. Qxh5+ {[%clk 0:00:13]}  Kg8 {[%clk 0:00:43]} 32. Qg6+ {[%clk 0:00:13]}  Kh8 {[%clk 0:00:43]} 33. Rf1 {[%clk 0:00:13]}  Nh3+ {[%clk 0:00:25]} 34. gxh3 {[%clk 0:00:09]}  Qc5+ {[%clk 0:00:26]} 35. Kg2 {[%clk 0:00:08]}  Qc2+ {[%clk 0:00:27]} 36. Kg3 {[%clk 0:00:09]}  Qxg6 {[%clk 0:00:27]} 37. Rxf8+ {[%clk 0:00:08]}  Kg7 {[%clk 0:00:27]} 38. Rf7+ {[%clk 0:00:08]}  Kg8 {[%clk 0:00:28]} 39. Rf4 {[%clk 0:00:08]}  Qd3+ {[%clk 0:00:27]} 40. Kg4 {[%clk 0:00:08]}  d4 {[%clk 0:00:27]} 41. e6 {[%clk 0:00:07]}  Qe2+ {[%clk 0:00:27]} 42. Kf5 {[%clk 0:00:07]}  d3 {[%clk 0:00:27]} 43. Ne4 {[%clk 0:00:06]}  d2 {[%clk 0:00:22]} 44. Rg4+ {[%clk 0:00:07]}  Kh8 {[%clk 0:00:22]} 45. Nf6 {[%clk 0:00:06]}  Qxg4+ {[%clk 0:00:20]} 46. hxg4 {[%clk 0:00:07]}  d1=Q {[%clk 0:00:21]} 47. e7 {[%clk 0:00:07]}  Qf3+ {[%clk 0:00:19]} 48. Kg6 {[%clk 0:00:08]}  Qd3+ {[%clk 0:00:18]} 49. Kf7 {[%clk 0:00:08]}  Qc4+ {[%clk 0:00:19]} 50. Kf8 {[%clk 0:00:07]}  Qc5 {[%clk 0:00:18]} 51. Kf7 {[%clk 0:00:07]}  Qc4+ {[%clk 0:00:18]} 52. Kg6 {[%clk 0:00:07]}  Qd3+ {[%clk 0:00:17]} 53. Kh6 {[%clk 0:00:08]}  Qe3+ {[%clk 0:00:05]} 54. Kg6 {[%clk 0:00:08]}  Qxe7 {[%clk 0:00:06]} 55. g5 {[%clk 0:00:09]}  Qg7+ {[%clk 0:00:06]} 56. Kf5 {[%clk 0:00:09]}  Qc7 {[%clk 0:00:06]} 57. h5 {[%clk 0:00:10]}  Qc5+ {[%clk 0:00:06]} 58. Kg6 {[%clk 0:00:10]}  Qc2+ {[%clk 0:00:06]} 59. Kf7 {[%clk 0:00:09]}  Qxa2+ {[%clk 0:00:07]} 60. Kf8 {[%clk 0:00:08]}  Qe6 {[%clk 0:00:07]} 61. h6 {[%clk 0:00:08]}  a5 {[%clk 0:00:06]} 62. Ne8 {[%clk 0:00:08]}  Kh7 {[%clk 0:00:05]} 63. Nf6+ {[%clk 0:00:07]}  Kg6 {[%clk 0:00:06]} 64. h7 {[%clk 0:00:08]}  Qf7# {[%clk 0:00:04]} 0-1


[Site "https://www.chess.com"]

[Event "Titled Tuesday Blitz March 21 Late 2023"]
[White "Munoz, Francisco Javier"]
[Black "Wizard_of_Odds"]
[WhiteFideId "128368"]
[WhiteElo "2383"]
[BlackElo "2373"]
[Result "1-0"]
[Round "09"]
[TimeControl "180+2"]
[Date "2023.03.21"]
[WhiteClock "0:00:20"]
[BlackClock "0:00:40"]

1. e4 {[%clk 0:01:35]}  e6 {[%clk 0:02:58]} 2. Nc3 {[%clk 0:01:36]}  d5 {[%clk 0:02:58]} 3. exd5 {[%clk 0:01:37]}  exd5 {[%clk 0:02:59]} 4. d4 {[%clk 0:01:37]}  c6 {[%clk 0:02:56]} 5. Bf4 {[%clk 0:01:33]}  Nf6 {[%clk 0:02:52]} 6. Qd3 {[%clk 0:01:33]}  Bg4 {[%clk 0:02:49]} 7. f3 {[%clk 0:01:33]}  Bh5 {[%clk 0:02:48]} 8. O-O-O {[%clk 0:01:33]}  Bg6 {[%clk 0:02:48]} 9. Qe3+ {[%clk 0:01:33]}  Qe7 {[%clk 0:02:43]} 10. Qd2 {[%clk 0:01:33]}  Qd7 {[%clk 0:02:33]} 11. g4 {[%clk 0:01:31]}  Bd6 {[%clk 0:02:24]} 12. Re1+ {[%clk 0:01:30]}  Kd8 {[%clk 0:02:22]} 13. h4 {[%clk 0:01:29]}  h6 {[%clk 0:02:20]} 14. Bh3 {[%clk 0:01:26]}  Qc7 {[%clk 0:02:13]} 15. Nge2 {[%clk 0:01:25]}  Na6 {[%clk 0:02:06]} 16. Bxd6 {[%clk 0:01:01]}  Qxd6 {[%clk 0:02:06]} 17. Nf4 {[%clk 0:01:02]}  Re8 {[%clk 0:01:46]} 18. g5 {[%clk 0:01:00]}  Nh5 {[%clk 0:01:34]} 19. Nxg6 {[%clk 0:00:54]}  Qxg6 {[%clk 0:01:28]} 20. Nxd5 {[%clk 0:00:30]}  cxd5 {[%clk 0:01:19]} 21. Qa5+ {[%clk 0:00:29]}  Nc7 {[%clk 0:01:18]} 22. Rxe8+ {[%clk 0:00:29]}  Kxe8 {[%clk 0:01:16]} 23. Qxc7 {[%clk 0:00:29]}  hxg5 {[%clk 0:01:00]} 24. Bc8 {[%clk 0:00:20]}  Qc6 {[%clk 0:00:43]} 25. Re1+ {[%clk 0:00:20]}  Kf8 {[%clk 0:00:43]} 26. Qd8+ {[%clk 0:00:20]}  Qe8 {[%clk 0:00:40]} 27. Rxe8# {[%clk 0:00:20]} 1-0


[Site "https://www.chess.com"]

[Event "Titled Tuesday Blitz March 21 Late 2023"]
[White "Abduzhaparov"]
[Black "Petukhov, Dmitry"]
[BlackFideId "4142748"]
[WhiteElo "2370"]
[BlackElo "2311"]
[Result "0-1"]
[Round "09"]
[TimeControl "180+2"]
[Date "2023.03.21"]
[WhiteClock "0:00:06"]
[BlackClock "0:00:38"]

1. Nf3 {[%clk 0:03:00]}  Nf6 {[%clk 0:02:58]} 2. c4 {[%clk 0:03:01]}  g6 {[%clk 0:02:58]} 3. Nc3 {[%clk 0:03:02]}  d5 {[%clk 0:02:57]} 4. Qa4+ {[%clk 0:03:01]}  Bd7 {[%clk 0:02:56]} 5. Qb3 {[%clk 0:03:01]}  dxc4 {[%clk 0:02:57]} 6. Qxc4 {[%clk 0:03:02]}  Bg7 {[%clk 0:02:57]} 7. e4 {[%clk 0:03:02]}  O-O {[%clk 0:02:57]} 8. e5 {[%clk 0:03:03]}  Ne8 {[%clk 0:02:57]} 9. d4 {[%clk 0:03:01]}  c6 {[%clk 0:02:46]} 10. h4 {[%clk 0:02:58]}  Bg4 {[%clk 0:02:43]} 11. Be2 {[%clk 0:02:54]}  Nc7 {[%clk 0:02:41]} 12. Ng5 {[%clk 0:02:51]}  Bxe2 {[%clk 0:02:41]} 13. Nxe2 {[%clk 0:02:47]}  Qd5 {[%clk 0:02:41]} 14. Qc2 {[%clk 0:02:38]}  h6 {[%clk 0:02:39]} 15. Nf3 {[%clk 0:02:34]}  Ne6 {[%clk 0:02:36]} 16. Be3 {[%clk 0:02:32]}  c5 {[%clk 0:02:30]} 17. Nc3 {[%clk 0:02:20]}  Qd8 {[%clk 0:02:30]} 18. dxc5 {[%clk 0:02:17]}  Nc6 {[%clk 0:02:29]} 19. Rd1 {[%clk 0:02:16]}  Qa5 {[%clk 0:02:28]} 20. a3 {[%clk 0:02:09]}  Rad8 {[%clk 0:02:18]} 21. O-O {[%clk 0:02:08]}  Qc7 {[%clk 0:02:02]} 22. Nd5 {[%clk 0:02:05]}  Qb8 {[%clk 0:02:01]} 23. b4 {[%clk 0:02:03]}  a6 {[%clk 0:02:01]} 24. Rd2 {[%clk 0:01:57]}  Rfe8 {[%clk 0:01:59]} 25. Rfd1 {[%clk 0:01:55]}  Nxe5 {[%clk 0:01:59]} 26. Nxe7+ {[%clk 0:01:46]}  Rxe7 {[%clk 0:01:58]} 27. Rxd8+ {[%clk 0:01:45]}  Nxd8 {[%clk 0:01:58]} 28. Nxe5 {[%clk 0:01:39]}  Bxe5 {[%clk 0:01:53]} 29. Bxh6 {[%clk 0:01:37]}  Ne6 {[%clk 0:01:48]} 30. h5 {[%clk 0:01:34]}  Bg7 {[%clk 0:01:48]} 31. hxg6 {[%clk 0:01:20]}  Bxh6 {[%clk 0:01:44]} 32. gxf7+ {[%clk 0:01:21]}  Kg7 {[%clk 0:01:33]} 33. Rd3 {[%clk 0:01:16]}  Rxf7 {[%clk 0:01:24]} 34. Rg3+ {[%clk 0:01:15]}  Bg5 {[%clk 0:01:20]} 35. Qe4 {[%clk 0:01:07]}  Qf4 {[%clk 0:01:15]} 36. Qe2 {[%clk 0:00:46]}  Nd4 {[%clk 0:01:01]} 37. Qb2 {[%clk 0:00:41]}  Kg6 {[%clk 0:01:00]} 38. Qb1+ {[%clk 0:00:35]}  Rf5 {[%clk 0:00:54]} 39. Qe1 {[%clk 0:00:19]}  Re5 {[%clk 0:00:48]} 40. Qb1+ {[%clk 0:00:18]}  Kf6 {[%clk 0:00:47]} 41. Re3 {[%clk 0:00:12]}  Rxe3 {[%clk 0:00:43]} 42. fxe3 {[%clk 0:00:13]}  Qxe3+ {[%clk 0:00:43]} 43. Kh2 {[%clk 0:00:12]}  Bf4+ {[%clk 0:00:43]} 44. Kh1 {[%clk 0:00:12]}  Qg3 {[%clk 0:00:41]} 45. Kg1 {[%clk 0:00:06]}  Be3+ {[%clk 0:00:38]} 0-1


[Site "https://www.chess.com"]